[Event "5th Sharjah Masters 2022"]
[Site "Sharjah"]
[Date "2022.05.24"]
[Round "4.34"]
[White "Buksa, Nataliya"]
[Black "Mastrovasilis, Athanasios"]
[Result "1-0"]
[ECO "C67"]
[WhiteElo "2406"]
[BlackElo "2540"]
[Annotator "TA"]
[PlyCount "79"]
[EventDate "2022.05.21"]
[EventType "swiss"]
[EventCountry "UAE"]
[SourceTitle "playchess.com"]
[Source "ChessBase"]
[SourceQuality "1"]
[TimeControl "5400+30"]

{[%evp 20,79,15,16,27,11,8,2,8,9,18,9,18,0,0,0,0,0,0,0,0,0,0,-26,-14,-18,-13,-12,-13,-18,-1,-3,-4,-5,0,0,0,0,0,-3,0,0,459,0,32,29,662,652,616,587,567,6,889,879,834,834,29994,29995,29995,29996,29996,873]} 1. e4 {[%emt 0:02:17]} e5 {[%emt 0:00:34]} 2. Nf3 {[%emt 0:00:33]} Nc6 {[%emt 0:00:20]} 3. Bb5 {[%emt 0:00:15]} Nf6 {[%emt 0:00:14][%cal Bg8f6,Bf6e4,Be4d6,Bd6f5,Bf5g7,Bg7e6][%mdl 32]} 4. O-O {[%emt 0:00:13]} Nxe4 {[%emt 0:00:21]} 5. Re1 {[%emt 0:00:04]} Nd6 {[%emt 0:00:08]} 6. Nxe5 {[%emt 0:00:04]} Be7 {[%emt 0:00:06]} 7. Bf1 {[%emt 0:00:03]} Nxe5 {[%emt 0:00:09]} 8. Rxe5 {[%emt 0:00:04]} O-O {[%emt 0:00:13]} 9. d4 {[%emt 0:00:05]} Bf6 {[%emt 0:00:44]} 10. Re1 {[%emt 0:01:31]} Nf5 {[%emt 0:00:38]} 11. c3 {[%emt 0:03:34]} d5 {[%emt 0:01:11] C67: Ruy Lopez: Berlin Defence: 4 0-0 Nxe4.} 12. Bf4 {[%emt 0:00:08]} c6 {[%emt 0:09:56]} 13. Bd3 {[%emt 0:03:57]} g6 {[%emt 0:01:46] The position is equal.} 14. Nd2 {[%emt 0:00:22]} Ng7 {[%emt 0:00:46]} 15. Qb3 {[%emt 0:16:48] [#]} Ne6 $146 {[%emt 0:17:20]} ({Predecessor:} 15... Qb6 16. Nf3 Bf5 17. Bxf5 {½-½ (17) Jovanovic,Z (2541)-Bosiocic,M (2553) Opatija 2015}) 16. Bg3 {[%emt 0:02:07]} c5 {[%emt 0:02:17]} 17. dxc5 {[%emt 0:12:04]} Nxc5 {[%emt 0:00:11]} 18. Qc2 {[%emt 0:00:03]} Nxd3 {[%emt 0:06:30]} 19. Qxd3 {[%emt 0:00:03]} Bf5 {[%emt 0:00:19]} 20. Qf3 {[%emt 0:00:24]} d4 {[%emt 0:03:45]} 21. Ne4 {[%emt 0:01:41]} Bxe4 {[%emt 0:01:48]} 22. Rxe4 {[%emt 0:01:04]} dxc3 {[%emt 0:00:34]} 23. bxc3 {[%emt 0:00:37]} Bg7 {[%emt 0:15:26]} 24. Be5 {[%emt 0:24:33]} Qd2 {[%emt 0:16:52]} 25. Bxg7 {[%emt 0:12:29]} Kxg7 {[%emt 0:02:23]} 26. h4 {[%emt 0:01:11]} Rae8 {[%emt 0:03:07][%cal Ba8e8,Be8e5,Be5f5][%mdl 32]} 27. Rd4 {[%emt 0:03:29]} Qb2 {[%emt 0:02:38]} 28. Rad1 {[%emt 0:00:05]} Re5 {[%emt 0:01:00]} 29. Rd7 {[%emt 0:04:58]} Rf5 {[%emt 0:02:08]} 30. Qe3 {[%emt 0:00:15] Strongly threatening g4.} ({Much weaker is} 30. Rxb7 Qc2 31. Qg4 Qxf2+ 32. Kh2 Rf4 $17) 30... Qxa2 $2 {[%emt 0:02:01][%mdl 8192]} (30... h5 $11 {and Black is okay.}) 31. Rxb7 $2 {[%emt 0:00:04]} (31. Qd4+ $1 $18 Kg8 32. Rd8) 31... a5 {[%emt 0:00:40]} 32. Qd4+ {[%emt 0:00:37]} Kg8 $2 {[%emt 0:03:39][%mdl 8192]} (32... Kh6 $11) 33. g4 $18 {[%emt 0:01:35]} Rf3 {[%emt 0:00:34] [#]} 34. Kg2 $1 {[%emt 0:00:04]} Qe2 {[%emt 0:00:59][%cal Of3f2] [#] And now ...Rxf2+! would win.} 35. Rd2 $2 {[%emt 0:00:18]} (35. Rd7 $1 $18) 35... Qe1 $2 {[%emt 0:01:23][%mdl 8192]} 36. Rd7 {[%emt 0:02:13]} h5 {[%emt 0:03:02]} 37. Rd8 {[%emt 0:01:40]} hxg4 {[%emt 0:02:47]} 38. Rxf8+ {[%emt 0:00:05][%mdl 64] Deflection. White mates.} Kxf8 {[%emt 0:00:03]} 39. Qh8+ {[%emt 0:00:02]} Ke7 {[%emt 0:00:07]} 40. Qd8+ {[%emt 0:00:02] Weighted Error Value: White=0.35/Black=0.85} 1-0

[Event "5th Sharjah Masters 2022"]
[Site "Sharjah"]
[Date "2022.05.24"]
[Round "4.35"]
[White "Suleymanli, Aydin"]
[Black "Zawadzka, Jolanta"]
[Result "1/2-1/2"]
[ECO "D24"]
[WhiteElo "2537"]
[BlackElo "2409"]
[Annotator "TA"]
[PlyCount "57"]
[EventDate "2022.05.21"]
[EventType "swiss"]
[EventCountry "UAE"]
[SourceTitle "playchess.com"]
[Source "ChessBase"]
[SourceQuality "1"]
[TimeControl "5400+30"]

{[%evp 9,57,0,0,0,0,0,0,0,25,18,19,0,13,-15,-12,-18,0,0,0,-33,0,0,0,-4,0,0,0,-2,0,-13,-12,-15,-24,-24,0,0,0,0,0,0,0,0,10,-47,-54,-46,0,-107,-95,-107]} 1. d4 {[%emt 0:00:21]} d5 {[%emt 0:00:07]} 2. c4 {[%emt 0:00:07]} e6 {[%emt 0:00:04]} 3. Nf3 {[%emt 0:00:14]} Nf6 {[%emt 0:00:10]} 4. Nc3 {[%emt 0:00:07]} dxc4 {[%emt 0:00:08]} 5. e4 {[%emt 0:00:14]} Bb4 {[%emt 0:00:17]} 6. Bxc4 {[%emt 0:00:25] D24: Queen's Gambit Accepted: 3 Nf3 Nf6 4 Nc3.} Nxe4 {[%emt 0:00:33]} 7. O-O {[%emt 0:00:11]} Nxc3 {[%emt 0:00:28]} 8. bxc3 {[%emt 0:00:05] The position is equal.} ({But not} 8. Qb3 Nd5 9. Bxd5 Qxd5 $17) 8... Be7 {[%emt 0:00:15]} 9. Ne5 {[%emt 0:00:06]} O-O {[%emt 0:04:05]} 10. Re1 {[%emt 0:03:32]} Nd7 {[%emt 0:06:56] [#]} 11. Qf3 $146 {[%emt 0:01:37]} (11. Qg4 {is more complex.} Nf6 12. Qg3 Nd5 13. Bh6) ({Predecessor:} 11. Qg4 Nf6 12. Qh3 Nd5 13. a3 c5 14. Bd3 f5 15. c4 Nb6 16. dxc5 Nd7 17. Bb2 Nxe5 18. Bxe5 Bxc5 {1-0 (41) Stalmach,R (2308)-Noe,C (2530) Marianske Lazne 2022}) 11... Nxe5 {[%emt 0:01:37]} 12. dxe5 {[%emt 0:00:20]} Qe8 {[%emt 0:03:48]} 13. Qg3 {[%emt 0:04:35]} Kh8 {[%emt 0:05:45]} 14. Rb1 {[%emt 0:01:35]} Bd7 {[%emt 0:07:07]} 15. Rxb7 {[%emt 0:02:46]} Bc6 {[%emt 0:01:49]} 16. Rb1 {[%emt 0:00:28]} ({Of course not} 16. Rxc7 Bd8 17. Rxc6 Qxc6 $15) 16... Rb8 {[%emt 0:02:26]} 17. Rxb8 {[%emt 0:04:15]} Qxb8 {[%emt 0:00:05]} 18. Bd3 {[%emt 0:00:55]} Qb6 {[%emt 0:12:13]} 19. Qh3 {[%emt 0:03:13][%csl Gd3][%cal Rh3h7] [#]} g6 {[%emt 0:00:57]} 20. Bh6 {[%emt 0:03:51]} Rd8 {[%emt 0:06:24]} 21. Qg3 {[%emt 0:06:19]} Qc5 {[%emt 0:03:57]} 22. Bf1 {[%emt 0:00:36]} Qd5 {[%emt 0:04:57]} 23. Bg5 {[%emt 0:02:58]} Bxg5 {[%emt 0:03:21]} 24. Qxg5 {[%emt 0:00:04][%cal Oe1e4]} Rb8 {[%emt 0:00:29]} 25. Qe7 {[%emt 0:00:57]} Kg7 {[%emt 0:06:12]} 26. h4 {[%emt 0:06:57]} (26. Qxc7 $11 Rb7 27. Qd6) 26... Qd8 $15 {[%emt 0:02:03]} 27. Qc5 {[%emt 0:00:45]} Qd2 {[%emt 0:00:23]} (27... Rb6 $1 $15) 28. Re2 {[%emt 0:02:00] [#]} (28. Ra1 $11 Rb6 29. a4) 28... Qd5 $1 $17 {[%emt 0:01:08]} 29. Qxd5 {[%emt 0:06:38] Weighted Error Value: White=0.18 (very precise) /Black=0.07 (flawless)} ({Not} 29. Qe7 $2 Rb1 30. f3 Qd3 $19) 1/2-1/2

[Event "5th Sharjah Masters 2022"]
[Site "Sharjah"]
[Date "2022.05.24"]
[Round "4.36"]
[White "Al Hosani, Omran"]
[Black "Aditya Mittal"]
[Result "0-1"]
[ECO "E11"]
[WhiteElo "2191"]
[BlackElo "2490"]
[Annotator "TA"]
[PlyCount "88"]
[EventDate "2022.05.21"]
[EventType "swiss"]
[EventCountry "UAE"]
[SourceTitle "playchess.com"]
[Source "ChessBase"]
[SourceQuality "1"]
[TimeControl "5400+30"]

{[%evp 16,88,10,8,12,-20,0,0,0,0,-7,0,26,0,0,0,0,0,0,0,57,53,54,12,8,10,96,99,100,46,51,52,116,57,60,52,51,0,0,0,0,0,0,0,0,-1,-1,-1,-1,-8,-1,-1,-1,-58,-58,-58,0,-50,-1,-91,-26,-151,-125,-295,-293,-289,-261,-259,-248,-482,-465,-439,-343,-5027,-1865]} 1. d4 {[%emt 0:00:05]} Nf6 {[%emt 0:00:08]} 2. c4 {[%emt 0:00:10]} e6 {[%emt 0:00:03]} 3. Nf3 {[%emt 0:00:16]} d5 {[%emt 0:00:06]} 4. g3 {[%emt 0:00:08]} Bb4+ {[%emt 0:00:06]} 5. Bd2 {[%emt 0:00:08]} Be7 {[%emt 0:00:07]} 6. Bg2 {[%emt 0:00:06]} O-O {[%emt 0:00:07]} 7. Qc2 {[%emt 0:00:08]} Nbd7 $1 {[%emt 0:00:04][%mdl 4] outshines the older 7...c6.} 8. O-O {[%emt 0:00:09]} c6 {[%emt 0:00:03]} 9. Rd1 {[%emt 0:01:44]} b6 {[%emt 0:00:43] E11: Bogo-Indian.} 10. Nc3 {[%emt 0:02:07]} Ba6 {[%emt 0:07:38]} (10... dxc4 {seems wilder.} 11. Ne5 Nxe5 12. dxe5 Nd5) 11. cxd5 {[%emt 0:02:38]} cxd5 {[%emt 0:08:34] The position is equal.} 12. Rac1 {[%emt 0:05:00] [#]} b5 $146 {[%emt 0:03:39]} ({Predecessor:} 12... Bb7 13. Bf4 Nh5 14. Bd2 Nhf6 15. Bf4 Nh5 {½-½ (17) Moroni,L (2559)-Lenic,L (2662) Batumi 2018}) 13. a3 {[%emt 0:02:29]} Rc8 {[%emt 0:01:22]} 14. Bg5 {[%emt 0:02:23]} Ne4 {[%emt 0:06:37]} 15. Bxe7 {[%emt 0:02:01]} Qxe7 {[%emt 0:00:03]} 16. Qb3 {[%emt 0:03:42]} Nxc3 {[%emt 0:12:36]} 17. Rxc3 {[%emt 0:01:48]} Rc4 {[%emt 0:14:58]} (17... b4 $11 18. axb4 Bxe2) 18. e3 {[%emt 0:01:45]} Rb8 {[%emt 0:03:06]} 19. Nd2 {[%emt 0:03:18]} Rxc3 {[%emt 0:10:41]} 20. Qxc3 {[%emt 0:00:21]} Nb6 {[%emt 0:00:26]} (20... b4 $11 21. axb4 Qxb4) 21. Qa5 $16 {[%emt 0:01:16]} Qb7 {[%emt 0:04:42][%cal Ob5b4]} 22. Rc1 {[%emt 0:01:18]} (22. b3 $16) 22... Nc4 $14 {[%emt 0:00:55]} 23. Qb4 {[%emt 0:00:13]} h5 {[%emt 0:03:32]} (23... Nxd2 $14 24. Qxd2 b4) 24. b3 {[%emt 0:01:44]} (24. Nf3 $16) 24... Nxd2 {[%emt 0:02:59]} 25. Qxd2 {[%emt 0:00:08]} b4 {[%emt 0:00:02]} 26. axb4 {[%emt 0:01:42]} ({Better is} 26. a4 $14) 26... Qxb4 $11 {[%emt 0:00:07]} 27. Qxb4 {[%emt 0:00:20]} Rxb4 $14 {[%emt 0:00:01][%mdl 4096] Endgame KRB-KRB} 28. Ra1 {[%emt 0:00:09]} Bd3 {[%emt 0:00:23]} 29. Rxa7 {[%emt 0:00:22]} Rxb3 {[%emt 0:00:02]} 30. Ra1 {[%emt 0:00:11]} g5 {[%emt 0:00:30]} 31. h4 {[%emt 0:01:55]} g4 {[%emt 0:00:25]} 32. Re1 {[%emt 0:01:12]} Rb2 {[%emt 0:01:58][%cal Bb3b2,Bb2d2,Bd2d1][%mdl 32]} 33. Rc1 {[%emt 0:06:39]} Rd2 {[%emt 0:00:37]} 34. Rc5 {[%emt 0:02:53]} (34. Bf1 $11) 34... Rd1+ $15 {[%emt 0:01:56]} 35. Kh2 {[%emt 0:00:02]} Rd2 {[%emt 0:00:04]} 36. Kg1 {[%emt 0:00:10]} Kg7 {[%emt 0:00:11]} (36... Bc4 $1 $15) 37. e4 {[%emt 0:05:42]} (37. Rc1 $1 $11) 37... dxe4 {[%emt 0:03:46] Black is more active.} (37... Bxe4 $17 {...Rd1+ is the strong threat.} 38. Bxe4 dxe4) 38. Rxh5 {[%emt 0:00:17]} (38. d5 $1 $11) 38... f5 $17 {[%emt 0:00:59]} 39. Rg5+ $2 {[%emt 0:00:02] [#] Now White is beyond hope.} (39. d5 $17) 39... Kh6 $19 {[%emt 0:02:00]} 40. Rg8 {[%emt 0:04:22]} Bc4 {[%emt 0:00:08]} 41. Rh8+ {[%emt 0:00:07]} Kg7 {[%emt 0:00:04]} 42. Rd8 $2 {[%emt 0:00:07]} (42. Ra8) 42... Bd5 {[%emt 0:00:28]} 43. Rd7+ {[%emt 0:00:43]} Kf6 {[%emt 0:01:11] [#] Strongly threatening ...e3.} 44. Ra7 $2 {[%emt 0:00:32]} (44. Rd6) 44... e3 {[%emt 0:01:29] Weighted Error Value: White=0.57/Black=0.22 (precise)} 0-1

[Event "5th Sharjah Masters 2022"]
[Site "Sharjah"]
[Date "2022.05.24"]
[Round "4.37"]
[White "Davtyan, Artur"]
[Black "Mammadzada, Gunay"]
[Result "1-0"]
[ECO "D16"]
[WhiteElo "2488"]
[BlackElo "2454"]
[Annotator "TA"]
[PlyCount "83"]
[EventDate "2022.05.21"]
[EventType "swiss"]
[EventCountry "UAE"]
[SourceTitle "playchess.com"]
[Source "ChessBase"]
[SourceQuality "1"]
[TimeControl "5400+30"]

{[%evp 12,83,20,12,19,15,15,5,6,22,16,0,0,0,0,0,0,0,3,0,0,0,0,0,0,-51,0,0,-4,-62,-72,-106,-96,-97,-83,-66,-62,-165,-67,-44,-52,-205,-198,-207,-214,-287,-228,-320,-298,-316,-304,-380,-354,-447,-185,-262,0,-218,-184,-323,-316,-295,-165,-315,-254,-295,-48,-57,-54,-47,248,235,541,546]} 1. d4 {[%emt 0:00:06]} d5 {[%emt 0:00:05]} 2. c4 {[%emt 0:00:10]} c6 {[%emt 0:00:05]} 3. Nf3 {[%emt 0:00:07]} Nf6 {[%emt 0:00:11]} 4. Nc3 {[%emt 0:00:09]} dxc4 {[%emt 0:00:37]} 5. a4 {[%emt 0:00:25]} e6 {[%emt 0:00:16]} 6. e3 {[%emt 0:03:47]} c5 {[%emt 0:00:46]} 7. Bxc4 {[%emt 0:00:17]} cxd4 {[%emt 0:00:40] The modern move. D16: Slav Defence: 5 a4: Lines with 5...Bg4 and 5...Na6.} 8. exd4 {[%emt 0:00:08]} Be7 {[%emt 0:00:54]} 9. O-O {[%emt 0:00:10]} O-O {[%emt 0:00:31] The position is equal.} 10. Qe2 {[%emt 0:15:56]} Nc6 {[%emt 0:01:20]} 11. Be3 {[%emt 0:00:33]} b6 {[%emt 0:02:23]} 12. Rad1 {[%emt 0:01:15]} Nb4 {[%emt 0:01:41] Inhibits d5.} 13. Ne5 {[%emt 0:02:13]} Bb7 {[%emt 0:02:29]} 14. f4 {[%emt 0:00:21] [#]} g6 $146 {[%emt 0:04:46]} ({Predecessor:} 14... Ne4 15. f5 exf5 16. Qh5 Nd5 17. Nxe4 g6 18. Qh6 fxe4 19. Nxf7 Qd7 20. Ng5 Bxg5 21. Bxg5 {1-0 (68) Cheparinov,I (2659)-Goryachkina,A (2602) Riga 2021}) 15. f5 {[%emt 0:14:45]} exf5 {[%emt 0:07:30]} 16. Bh6 {[%emt 0:03:38]} Nfd5 $1 {[%emt 0:04:10][%cal Oa8c8]} 17. Bxf8 {[%emt 0:05:13]} Bxf8 {[%emt 0:10:07]} 18. Nd3 {[%emt 0:09:00]} (18. Bb3 $11) 18... Rc8 {[%emt 0:25:01]} (18... Nxc3 $15 19. bxc3 Nd5 20. Bxd5 Qxd5) 19. Nxb4 $11 {[%emt 0:00:35]} Nxb4 {[%emt 0:00:12]} 20. d5 {[%emt 0:41:42]} (20. Rfe1 $11) 20... Qh4 $15 {[%emt 0:06:03]} 21. Bb3 {[%emt 0:00:00]} Bc5+ {[%emt 0:02:57]} ({Of course not} 21... Bd6 $6 22. g3 Qh3 23. Qf3 $11) 22. Kh1 {[%emt 0:00:00]} Bd6 {[%emt 0:00:04][%csl Gd6][%cal Rh4h2] [#]} 23. g3 {[%emt 0:00:00]} Bxg3 {[%emt 0:00:13]} 24. Nb5 {[%emt 0:00:00] Inhibits Bd6.} (24. Qg2 $1 $15 Be5 25. Rxf5 Bxh2 26. Qxh2 Qxh2+ 27. Kxh2 gxf5 28. Rf1) 24... a5 {[%emt 0:04:30]} ({Better is} 24... Bb8 $19 {Hoping for ...Na6.} 25. Rd4 {[#]} Qh3 $1 26. Rxb4 a5) 25. Qg2 $1 {[%emt 0:00:00]} Bb8 $36 {[%emt 0:01:55][%mdl 2048] Black has good play.} 26. Nd4 $2 {[%emt 0:00:00]} (26. Rxf5 $1 $15 Bxh2 27. Qxh2 Qe4+ 28. Kg1 Qxf5 29. Nd6 Qg5+ 30. Qg2 Qxg2+ 31. Kxg2) 26... Kh8 {[%emt 0:03:24]} 27. Nf3 {[%emt 0:00:00]} Qf6 {[%emt 0:00:21]} 28. Rd4 {[%emt 0:00:00]} Re8 {[%emt 0:00:38]} 29. Qd2 {[%emt 0:00:00] Prevents Re3.} (29. Rdd1 $142) 29... Bd6 $19 {[%emt 0:01:46]} 30. Re1 {[%emt 0:00:00]} Re4 {[%emt 0:06:24]} 31. Rd1 {[%emt 0:03:32]} Bc5 {[%emt 0:05:42] This bishop pair is nice.} 32. Qh6 {[%emt 0:01:20][%cal Of3g5]} Be7 {[%emt 0:03:13]} (32... Rxd4 $2 {perishes.} 33. Rxd4 Kg8 34. Rd1 $19) (32... Kg8 $142 33. Rxe4 fxe4) 33. Qc1 {[%emt 0:00:34]} (33. h4 {was called for.}) 33... Bd6 $2 {[%emt 0:03:28]} (33... Na6 $19 {aiming for ...Nc5.} 34. Qd2 Nc5) 34. Qc3 $2 {[%emt 0:00:40]} (34. Qd2 $1 $11 {and White stays safe.}) 34... Re2 {[%emt 0:01:31]} 35. Re1 {[%emt 0:00:19]} (35. Rh4 {might work better.} Qxc3 36. bxc3) 35... Rf2 {[%emt 0:00:35][%cal Of2f3]} 36. Red1 {[%emt 0:01:03]} Kg8 {[%emt 0:01:07]} (36... Bc5 $142 {White must now prevent ...Rxf3.} 37. R4d2 Qxc3 38. bxc3 Rxf3 39. cxb4 axb4) 37. Kg1 {[%emt 0:00:30]} (37. R1d2 $142 Rxd2 38. Rxd2) 37... Re2 {[%emt 0:00:21] Strongly threatening ...Bc5.} 38. Kh1 {[%emt 0:00:18]} Bc5 $2 {[%emt 0:00:54]} (38... f4 $19 39. R4d2 Qxc3 40. bxc3 Re3) 39. R4d2 $15 {[%emt 0:00:11]} Qxc3 {[%emt 0:00:35]} 40. bxc3 {[%emt 0:00:02][%cal Bb2c3,Bc3b4,Bb4c5][%mdl 32]} Re3 {[%emt 0:00:18][%mdl 8192]} (40... Rxd2 $15 {stays ahead.} 41. Rxd2 Na6) 41. cxb4 $18 {[%emt 0:00:10]} Rxb3 $2 {[%emt 0:00:39]} (41... axb4 42. Rd3 Re2) 42. bxc5 {[%emt 0:00:02] Weighted Error Value: White=0.47/Black=0.60} 1-0

[Event "5th Sharjah Masters 2022"]
[Site "Sharjah"]
[Date "2022.05.24"]
[Round "4.38"]
[White "Farahat, Ali"]
[Black "Vogt, Lothar"]
[Result "1/2-1/2"]
[ECO "C00"]
[WhiteElo "2381"]
[BlackElo "2365"]
[Annotator "TA"]
[PlyCount "147"]
[EventDate "2022.05.21"]
[EventType "swiss"]
[EventCountry "UAE"]
[SourceTitle "playchess.com"]
[Source "ChessBase"]
[SourceQuality "1"]
[TimeControl "5400+30"]

{[%evp 11,147,24,21,9,14,-15,26,34,82,54,57,-19,33,-2,0,-42,-33,-39,-39,-30,-34,-26,-32,-30,-20,-73,-56,-76,-50,-130,-80,-163,-151,-158,-54,-52,-53,-70,-64,-109,-104,-102,-62,-89,-18,-33,-19,-23,-31,-73,-18,-72,-75,-115,-115,-115,-82,-82,-83,-115,-85,-105,-105,-105,-105,-105,-105,-105,-30,-30,-30,-30,-30,-105,-105,-106,-105,-105,-105,-105,-105,-105,-105,-105,-105,-105,-105,-105,-105,-105,-105,-105,-105,-105,-105,-105,-105,-105,-105,-105,-29,-78,-78,-1301,-79,-79,-74,-79,-87,-117,-117,-117,-117,-117,-117,-568,-96,-118,-21,-29973,-29974,-29973,-29975,-29975,-29974,-29970,0,-2361,0,0,0,0,0,0,0,0,0,0]} 1. e4 {[%emt 0:00:05]} c5 {[%emt 0:00:03]} 2. Nf3 {[%emt 0:00:17]} e6 {[%emt 0:00:02]} 3. g3 {[%emt 0:00:24]} d6 {[%emt 0:01:30]} 4. Bg2 {[%emt 0:01:24]} Nf6 {[%emt 0:00:10]} 5. Qe2 {[%emt 0:05:00]} Nc6 {[%emt 0:01:03]} 6. O-O {[%emt 0:00:41]} Be7 {[%emt 0:03:48]} 7. Rd1 {[%emt 0:01:34] C00: French: Unusual White 2nd moves.} O-O {[%emt 0:00:56]} 8. b3 {[%emt 0:02:11] [#]} Nd7 $146 {[%emt 0:05:58]} ({Predecessor:} 8... Qc7 9. Bb2 b6 10. d4 cxd4 11. Nxd4 Nxd4 12. Rxd4 Bb7 13. c4 Qc6 14. Nc3 Rfd8 {1-0 (29) Kosten,A (2496)-Lozachmeur,Y (2047) Avoine 2008}) 9. Bb2 {[%emt 0:01:09] White has an edge.} Bf6 {[%emt 0:02:49]} (9... Rb8 $14) 10. c3 {[%emt 0:05:11]} ({Of course not} 10. Nc3 $6 b6 $11) 10... d5 {[%emt 0:00:39]} 11. d3 {[%emt 0:04:21]} (11. d4 $14) 11... b6 {[%emt 0:08:25]} (11... d4 $11) 12. a4 {[%emt 0:00:52]} Ba6 {[%emt 0:02:33]} 13. Na3 {[%emt 0:00:36]} dxe4 $1 {[%emt 0:01:09]} 14. Qxe4 {[%emt 0:00:36]} Na5 {[%emt 0:02:21]} 15. Nd2 {[%emt 0:09:41]} Bb7 {[%emt 0:01:48]} 16. Qe2 {[%emt 0:01:02]} Bxg2 {[%emt 0:00:38]} 17. Kxg2 {[%emt 0:00:04]} Ne5 {[%emt 0:03:02]} (17... Qc7 {with more complications.} 18. Nac4 Nxc4 19. Nxc4 Ne5) 18. Ne4 {[%emt 0:02:24]} (18. d4 $11 {remains equal.} Qd5+ 19. Ne4 cxd4 20. cxd4) 18... Nxb3 $17 {[%emt 0:01:54]} 19. Nxf6+ {[%emt 0:03:05]} Qxf6 {[%emt 0:01:33]} 20. Rab1 {[%emt 0:01:26]} (20. c4 $1 $15 Nd4 21. Bxd4 cxd4 22. a5) 20... Rfd8 {[%emt 0:04:15]} (20... Nc6 $142 21. Qe4 e5) 21. Nb5 {[%emt 0:02:23]} (21. Qe4 $17) 21... Qf5 $19 {[%emt 0:05:31][%cal Re5d3]} 22. c4 {[%emt 0:02:53]} Nxd3 {[%emt 0:00:40] Pair of Knights!} (22... Nc6 $1 $17 23. Bc3 Nba5) 23. Bc3 $1 $15 {[%emt 0:03:10]} Na5 {[%emt 0:02:13]} 24. Bxa5 {[%emt 0:00:13]} bxa5 {[%emt 0:00:03]} 25. Nxa7 {[%emt 0:00:47]} Nb4 {[%emt 0:02:30][%cal Bd3b4,Bb4c6,Bc6e5][%mdl 32] Prevents Nc6.} ({Much worse is} 25... Rxa7 $6 26. Rxd3 Rc8 27. Rb5 $11) 26. Nb5 {[%emt 0:02:38]} Nc6 {[%emt 0:04:49]} 27. h3 {[%emt 0:01:47]} h5 {[%emt 0:01:34]} (27... Nb4 $17) 28. Nd6 $1 $11 {[%emt 0:02:56]} Qe5 {[%emt 0:12:08]} 29. Qxe5 {[%emt 0:11:07]} Nxe5 {[%emt 0:00:03]} 30. Nb7 {[%emt 0:00:27]} Rd4 {[%emt 0:05:34]} (30... Rxd1 $17 31. Rxd1 Nxc4 32. Nxc5 Rc8) 31. Nxc5 {[%emt 0:00:54]} (31. Rxd4 $11 cxd4 32. c5) 31... Rxc4 $17 {[%emt 0:00:18]} 32. Nd7 {[%emt 0:07:54]} Nxd7 {[%emt 0:04:51]} 33. Rxd7 {[%emt 0:00:05]} Rxa4 {[%emt 0:00:39][%mdl 4096] Endgame KRR-KRR} 34. Rbb7 {[%emt 0:00:05]} Rf8 {[%emt 0:00:17]} 35. Ra7 {[%emt 0:00:05]} g5 {[%emt 0:00:28]} 36. Rdc7 {[%emt 0:02:04]} Kg7 {[%emt 0:00:28]} 37. Rc5 {[%emt 0:00:12][%csl LRa5,LRg5]} Kg6 {[%emt 0:02:31]} 38. Raxa5 {[%emt 0:01:01]} Rxa5 {[%emt 0:00:11]} 39. Rxa5 {[%emt 0:00:04] KR-KR} f5 {[%emt 0:00:48]} (39... Rh8 $17 40. Ra4 h4) 40. Ra6 $11 {[%emt 0:01:26]} Kf6 {[%emt 0:00:10]} 41. Ra7 {[%emt 0:00:55]} Rh8 {[%emt 0:01:17]} 42. Ra4 {[%emt 0:02:14]} (42. h4 $1 $11) 42... h4 $17 {[%emt 0:00:50]} 43. gxh4 {[%emt 0:00:46]} Rxh4 {[%emt 0:00:16]} 44. Ra8 {[%emt 0:00:11]} Rd4 {[%emt 0:00:58]} 45. Ra5 {[%emt 0:01:18]} Rd5 {[%emt 0:00:47]} 46. Ra6 {[%emt 0:00:19]} Ke5 {[%emt 0:00:26]} 47. Rb6 {[%emt 0:00:14]} Rd6 {[%emt 0:00:29]} 48. Rb4 {[%emt 0:00:37]} Rd4 {[%emt 0:00:24]} 49. Rb6 {[%emt 0:00:09]} Re4 {[%emt 0:01:31]} 50. Rb3 {[%emt 0:01:18]} Re1 {[%emt 0:00:36]} 51. Rb5+ {[%emt 0:00:57]} Kf4 {[%emt 0:00:49]} 52. Rb4+ {[%emt 0:00:10]} Re4 {[%emt 0:00:12]} 53. Rb3 {[%emt 0:00:06]} Rd4 {[%emt 0:02:05]} 54. Rf3+ {[%emt 0:01:23]} Ke5 {[%emt 0:00:32]} 55. Rb3 {[%emt 0:00:23]} f4 {[%emt 0:00:24]} ({Better is} 55... Rd8 $17 56. Kg3 Rd2 57. Rb5+ Rd5) 56. Rb8 {[%emt 0:01:23]} (56. Rb5+ $11 Rd5 57. Rb8) 56... Ke4 {[%emt 0:00:59]} 57. Rg8 $2 {[%emt 0:00:55][%mdl 8192]} (57. Rb2 $17) 57... Rd5 $2 {[%emt 0:01:01]} (57... f3+ $1 $19 {is more deadly.} 58. Kg3 Rd1 59. Rxg5 Rg1+ 60. Kh4 Rg2 61. Rg4+ Kd3) 58. Ra8 {[%emt 0:00:41]} e5 {[%emt 0:00:57]} 59. Ra4+ {[%emt 0:01:41]} Kf5 {[%emt 0:01:24] aiming for ...e4.} 60. Ra8 {[%emt 0:02:56]} e4 {[%emt 0:00:19]} 61. Rf8+ {[%emt 0:01:13]} Ke5 {[%emt 0:00:12]} 62. Re8+ {[%emt 0:00:16]} Kd4 $1 {[%emt 0:00:04]} 63. Ra8 $2 {[%emt 0:00:33][%mdl 8192] [#]} (63. Kf1 $17 {is more resistant.}) 63... Kd3 $2 {[%emt 0:00:35]} (63... Rb5 $1 $19 64. Ra4+ Kd5) 64. Kf1 {[%emt 0:01:58]} e3 {[%emt 0:02:02]} (64... Kc3 $17 65. Ke2 Kd4) 65. fxe3 $2 {[%emt 0:06:17][%mdl 8192]} (65. Re8 $11) 65... Kxe3 {[%emt 0:03:16]} 66. Kg2 {[%emt 0:02:43]} Rd2+ {[%emt 0:00:19]} ({And not} 66... f3+ 67. Kg3 $11) 67. Kg1 {[%emt 0:00:10]} f3 {[%emt 0:01:24]} 68. Ra3+ {[%emt 0:02:31]} Kf4 {[%emt 0:06:39]} (68... Rd3 $142 69. Ra1 Rd4 70. Kf1 Rd5 71. Kg1 Kf4 72. Kf2 Rd2+ 73. Ke1 Re2+ 74. Kd1 Re5 75. Ra7 f2 76. Rf7+ Kg3 77. Kd2 Re1 78. h4 gxh4 79. Rg7+ Kh2 80. Rf7 f1=Q 81. Rxf1 Rxf1 82. Ke2 Rf4 83. Ke3 Kg3 84. Kd3 h3 85. Ke3 h2 86. Kd3 h1=Q 87. Kc3 Qc1+ 88. Kd3 Qa3+ 89. Ke2 Rf2+ 90. Ke1 Qc1#) 69. Ra4+ $1 $19 {[%emt 0:00:15] [#]} Kg3 $2 {[%emt 0:00:36]} (69... Ke5 $1 $19 70. Kf1 Kf5) 70. Rg4+ $1 $11 {[%emt 0:00:08] The position is equal.} Kxh3 {[%emt 0:00:03]} 71. Rxg5 {[%emt 0:00:20]} Rg2+ {[%emt 0:00:02]} 72. Kh1 {[%emt 0:00:09]} Rg4 {[%emt 0:00:21]} (72... Rc2 $5 73. Kg1 Rg2+ 74. Kh1 Rh2+ 75. Kg1 Rg2+ $11) 73. Rf5 {[%emt 0:01:05]} Kg3 {[%emt 0:00:13] ( -> ...f2)} 74. Kg1 {[%emt 0:00:15] Against f2+.  Weighted Error Value: White=0.33/Black=0.32} 1/2-1/2